[Event "GER-chT States Women 2022"]
[Site "Braunfels"]
[Date "2022.06.17"]
[Round "3.8"]
[White "Moeller, Lisa-Marie"]
[Black "Roesler, Hannah Clara"]
[Result "1-0"]
[ECO "B38"]
[WhiteElo "1927"]
[BlackElo "1718"]
[Annotator "TA"]
[PlyCount "105"]
[EventDate "2022.06.15"]
[EventType "swiss"]
[EventCountry "GER"]
[SourceTitle "playchess.com"]
[Source "ChessBase"]
[SourceQuality "1"]
[TimeControl "40/5400+30:1800+30"]

{[%evp 26,105,43,42,44,42,51,30,45,35,82,-27,-29,-26,0,-31,-31,-216,-12,-15,-16,-27,0,0,23,-6,0,0,0,0,0,0,0,0,64,58,137,45,183,189,187,187,189,182,187,171,228,220,324,335,329,316,464,478,633,632,743,704,1010,953,5121,2483,29979,29980,29983,29984,29984,29985,29988,29987,29991,29991,29992,29993,29993,29994,29994,29992,29992,29992,29993,29992]} 1. e4 {[%emt 0:00:02]} c5 {[%emt 0:00:22]} 2. Nf3 {[%emt 0:00:05]} g6 {[%emt 0:00:03]} 3. d4 {[%emt 0:00:11]} cxd4 {[%emt 0:00:05]} 4. Nxd4 {[%emt 0:00:05]} Nc6 {[%emt 0:00:11]} 5. c4 {[%emt 0:00:50]} Bg7 {[%emt 0:00:12]} 6. Be3 {[%emt 0:00:26]} Nf6 {[%emt 0:00:21]} 7. f3 {[%emt 0:00:29]} O-O {[%emt 0:00:15]} 8. Nc3 {[%emt 0:00:04]} d6 {[%emt 0:00:28]} 9. Qd2 {[%emt 0:00:33]} Bd7 {[%emt 0:00:16]} 10. Be2 {[%emt 0:01:40]} Nxd4 {[%emt 0:00:19]} 11. Bxd4 {[%emt 0:00:11]} a5 {[%emt 0:00:15]} 12. O-O {[%emt 0:00:42]} Bc6 {[%emt 0:00:33]} 13. Rfd1 {[%emt 0:00:59]} Nd7 {[%emt 0:01:54]} 14. Be3 {[%emt 0:09:59] 14.Bf2 is the hot move.} Nc5 {[%emt 0:03:23] B38: Sicilian: Maroczy Bind with 5...Bg7 and 7...0-0.} 15. Rab1 {[%emt 0:05:39]} Qc7 {[%emt 0:16:41]} 16. Nd5 {[%emt 0:03:49]} Bxd5 {[%emt 0:03:28] [#] White has an edge.} 17. cxd5 $146 {[%emt 0:00:36]} ({Predecessor:} 17. Qxd5 Rfd8 18. Kh1 h5 19. Qd2 Kh7 20. Rg1 Rh8 21. Qd5 Raf8 22. b3 f5 23. Rbd1 fxe4 24. fxe4 {0-1 (34) Aygun,H (1485)-Yurdakul,D (1762) Ankara 2020}) 17... Rfd8 {[%emt 0:10:41]} (17... Qd7 $14 {might be stronger.}) 18. b4 {[%emt 0:10:24]} (18. b3 $16) 18... axb4 $11 {[%emt 0:04:00]} 19. Rxb4 {[%emt 0:00:38]} Qa5 {[%emt 0:02:12]} (19... Ra3 $5 {[%cal Rg7c3]} 20. Rc4 Rda8 $15) 20. Bc4 {[%emt 0:03:11]} Rdc8 {[%emt 0:19:29] Hoping for ...Na6.} 21. Rc1 $2 {[%emt 0:05:31] [#]} (21. Bf1 $15) 21... h5 $2 {[%emt 0:07:02]} (21... Nd3 $1 $19 {[%cal Rd3c1][%mdl 512]} 22. Qxd3 Qxb4) 22. Rb5 {[%emt 0:03:53]} Qxd2 {[%emt 0:05:16]} 23. Bxd2 {[%emt 0:00:08]} Bd4+ {[%emt 0:02:50]} 24. Kf1 $1 {[%emt 0:00:33]} b6 {[%emt 0:01:48]} 25. Ke2 {[%emt 0:03:11]} Nd7 {[%emt 0:03:44]} 26. Rbb1 {[%emt 0:06:22]} Ne5 {[%emt 0:02:30]} 27. Bb3 {[%emt 0:02:14]} b5 {[%emt 0:04:24]} 28. Rxc8+ {[%emt 0:03:42]} Rxc8 {[%emt 0:00:06]} 29. Rc1 {[%emt 0:03:06]} Rxc1 {[%emt 0:02:42]} (29... Bc5 $11) 30. Bxc1 {[%emt 0:00:04][%mdl 4096] Endgame KBB-KBN} b4 {[%emt 0:01:03] Black is on the road to losing.} ({Better is} 30... Kg7 $14) 31. Be3 {[%emt 0:03:12]} (31. Ba4 $16) 31... Bb2 {[%emt 0:02:02]} ({Black should play} 31... Bxe3 $14 32. Kxe3 g5) 32. Bd2 $18 {[%emt 0:02:01]} Ba3 {[%emt 0:00:23]} 33. f4 {[%emt 0:01:09]} Nd7 {[%emt 0:01:48]} 34. Bc2 {[%emt 0:08:07]} Nc5 {[%emt 0:02:16] [#]} 35. Ke3 $1 {[%emt 0:01:01]} e6 {[%emt 0:02:16]} (35... Kf8 {is a better defense.} 36. Kd4 Ke8) 36. Kd4 {[%emt 0:00:57]} Nd7 {[%emt 0:01:07]} (36... Na6 {was called for.} 37. Kc4 exd5+ 38. Kxd5 Nc7+ 39. Kc6 Ne6) 37. dxe6 {[%emt 0:01:23]} fxe6 {[%emt 0:00:09]} 38. Kc4 {[%emt 0:00:59]} Kf7 {[%emt 0:00:59]} (38... e5 $142 39. Bb3 Kg7 40. fxe5 Nxe5+ 41. Kd5 Kf6 42. Kxd6 h4) 39. Bxb4 {[%emt 0:01:02]} Bxb4 {[%emt 0:00:58]} 40. Kxb4 {[%emt 0:00:07] KB-KN} Nf6 {[%emt 0:00:53]} 41. h3 {[%emt 0:33:11]} h4 {[%emt 0:01:08]} 42. a4 {[%emt 0:00:00]} d5 {[%emt 0:00:23]} 43. e5 {[%emt 0:00:00]} Nh5 {[%emt 0:00:37]} 44. a5 {[%emt 0:00:00] White mates.} Nxf4 {[%emt 0:00:25]} 45. a6 {[%emt 0:00:00]} d4 {[%emt 0:00:33]} 46. a7 {[%emt 0:00:00]} Nd5+ {[%emt 0:00:13]} 47. Kc5 {[%emt 0:00:00]} Ne3 {[%emt 0:00:29]} 48. Bd3 {[%emt 0:00:00]} Nxg2 {[%emt 0:00:22]} 49. a8=Q {[%emt 0:00:00]} Nf4 {[%emt 0:00:07]} 50. Qf3 {[%emt 0:00:00]} g5 {[%emt 0:00:08]} 51. Kxd4 {[%emt 0:00:00]} Kg7 52. Qg4 {[%emt 0:00:00]} Kh6 {[%emt 0:00:24]} 53. Bc4 {[%emt 0:00:00] Weighted Error Value: White=0.23 (precise) /Black=0.47} 1-0

[Event "GER-chT States Women 2022"]
[Site "Braunfels"]
[Date "2022.06.17"]
[Round "3.9"]
[White "Hund, Sarah"]
[Black "Khrapko, Marharyta"]
[Result "0-1"]
[ECO "B24"]
[WhiteElo "2086"]
[BlackElo "2110"]
[Annotator "TA"]
[PlyCount "100"]
[EventDate "2022.06.15"]
[EventType "swiss"]
[EventCountry "GER"]
[SourceTitle "playchess.com"]
[Source "ChessBase"]
[SourceQuality "1"]
[TimeControl "40/5400+30:1800+30"]

{[%evp 20,100,-10,-20,-18,0,161,171,211,217,229,63,82,20,17,25,82,93,110,77,109,36,120,108,133,0,0,0,0,0,0,-55,-62,-75,-10,-106,-93,-92,-101,-208,-142,-212,-218,-207,-117,-129,-131,-114,0,-25,-22,-93,-78,-87,14,-20,0,-85,-81,-113,-95,-280,-290,-264,-265,-337,-326,-335,-307,-479,-412,-1064,-1029,-875,-996,-29976,-29972,-29988,-1314,-29989,-29990,-29996,-29989]} 1. e4 {[%emt 0:00:03]} c5 {[%emt 0:00:01]} 2. Nc3 {[%emt 0:00:09]} Nc6 {[%emt 0:00:11]} 3. Bb5 {[%emt 0:00:15]} Nd4 {[%emt 0:00:06]} 4. Bc4 {[%emt 0:00:21]} e6 {[%emt 0:01:03]} 5. Nf3 {[%emt 0:01:14]} a6 {[%emt 0:01:17]} 6. Nxd4 {[%emt 0:00:57]} cxd4 {[%emt 0:00:02]} 7. Ne2 {[%emt 0:00:15]} b5 {[%emt 0:00:59]} 8. Bb3 {[%emt 0:00:33]} Bc5 {[%emt 0:03:48]} 9. d3 {[%emt 0:01:42]} Ne7 {[%emt 0:02:37]} 10. c3 {[%emt 0:02:21]} Nc6 {[%emt 0:02:25]} 11. O-O {[%emt 0:02:52]} Qb6 {[%emt 0:01:20] B30: Sicilian: 2...Nc6 3 Bb5, lines without ...g6.} 12. Ng3 {[%emt 0:02:12] [#]} b4 $146 {[%emt 0:02:27]} (12... O-O $11) ({Predecessor:} 12... Bb7 13. Qg4 O-O-O 14. Ne2 h5 15. Qh3 a5 16. a3 f6 17. cxd4 Nxd4 18. Nxd4 Bxd4 19. Be3 {½-½ (47) Malbran,G (2315)-Quinteros,M (2505) Buenos Aires 1991}) 13. Nh5 $18 {[%emt 0:02:01]} g6 {[%emt 0:03:25] White is clearly better.} 14. Nf6+ {[%emt 0:02:10]} Kd8 {[%emt 0:00:01]} 15. cxb4 $2 {[%emt 0:03:34]} (15. Bh6 $18) 15... Be7 $14 {[%emt 0:02:45]} 16. e5 {[%emt 0:05:55]} (16. Qf3 $16) 16... Nxe5 $11 {[%emt 0:02:15]} 17. Ne4 {[%emt 0:00:35]} f5 {[%emt 0:02:11]} (17... Bb7 $11 {remains equal.}) 18. Bf4 $16 {[%emt 0:05:15]} Nf7 {[%emt 0:07:01]} 19. Nd2 {[%emt 0:01:31]} Qxb4 {[%emt 0:08:10]} 20. Nc4 {[%emt 0:04:24]} (20. a3 $16 Qb5 21. Rc1) 20... Bb7 {[%emt 0:03:48]} (20... a5 $14) 21. Rc1 {[%emt 0:04:30][%mdl 1024] Ne5 is the strong threat. White has strong compensation.} Rc8 {[%emt 0:06:04]} 22. Qe2 {[%emt 0:04:26]} (22. Bd2 $16 Qb5 23. Ba4) 22... Bf6 $11 {[%emt 0:02:40]} 23. Bd2 {[%emt 0:06:03]} Qb5 {[%emt 0:01:14]} 24. Na5 {[%emt 0:00:58][%cal Ob3e6] Strongly threatening Bxe6!} Ke7 {[%emt 0:06:32]} 25. Bc4 {[%emt 0:02:52]} (25. Rc4 $1 $11) 25... Qb6 $1 $15 {[%emt 0:02:01]} (25... Qxb2 $2 26. Rb1 Qxb1 27. Rxb1 $18) 26. Rfe1 {[%emt 0:01:27]} Ne5 {[%emt 0:01:38] Active counter play!} (26... Qxb2 $2 27. Rb1 Qxb1 28. Rxb1 $18) (26... Ba8 $17) 27. Nxb7 {[%emt 0:11:47]} (27. f4 $11 {keeps the balance.} Nxc4 28. Nxc4) 27... Nxc4 $17 {[%emt 0:03:18]} 28. dxc4 {[%emt 0:00:36] Black must now prevent Qf3.} Qxb7 {[%emt 0:00:17]} 29. c5 {[%emt 0:01:04]} (29. b4 $17) 29... Kf7 {[%emt 0:06:54]} 30. Bf4 {[%emt 0:02:25]} (30. b4 $17) 30... Qd5 $1 $19 {[%emt 0:06:18][%csl LRa2,LRc5]} 31. Bd6 {[%emt 0:04:54]} Qxa2 {[%emt 0:06:46]} ({Black should try} 31... d3 $19 32. Qd2 e5) 32. Ra1 $17 {[%emt 0:01:04][%cal Bc1a1,Ba1a6,Ba6b6][%mdl 32]} Qb3 {[%emt 0:00:11][%cal Oe6e5]} 33. Rxa6 {[%emt 0:00:57]} Qb7 {[%emt 0:08:29] Inhibits Ra7.} (33... d3 $17 34. Qd1 Qc2) 34. Rb6 {[%emt 0:03:15]} Qd5 {[%emt 0:00:01]} 35. Qb5 {[%emt 0:01:28]} (35. Qf3 $11) 35... Rhd8 {[%emt 0:00:35]} 36. Rb7 {[%emt 0:02:37]} Qc6 {[%emt 0:00:02]} ({Black should play} 36... Rc6 $1 $17 37. Rb8 d3) 37. Qb4 {[%emt 0:00:48]} Qd5 {[%emt 0:08:32]} (37... d3 $11) 38. Qb5 {[%emt 0:01:21] [#]} Rc6 $1 {[%emt 0:00:01]} 39. h3 {[%emt 0:02:02] [#]} e5 $1 {[%emt 0:01:00][%cal Be6e5,Be5e4,Be4e3][%mdl 32]} 40. Qb3 $2 {[%emt 0:04:46] Now White is beyond hope.} (40. Rb8 $17 {is a better defense.}) 40... Qxb3 $19 {[%emt 0:01:05]} 41. Rxb3 {[%emt 0:30:05]} e4 {[%emt 0:30:13]} 42. f3 {[%emt 0:00:54]} e3 {[%emt 0:00:52]} 43. Kf1 {[%emt 0:02:08]} Rdc8 {[%emt 0:00:00]} 44. Rb7 {[%emt 0:00:00]} (44. Rd3 {was called for.}) 44... Ke6 {[%emt 0:00:00]} 45. b4 {[%emt 0:00:00]} (45. Rb4 $142 f4 46. Ra4) 45... Rxd6 {[%emt 0:00:00]} 46. cxd6 {[%emt 0:00:00]} Bh4 {[%emt 0:00:00]} 47. Ra1 {[%emt 0:00:00]} Rc2 {[%emt 0:00:00]} 48. Rc7 {[%emt 0:00:00]} e2+ {[%emt 0:00:00]} 49. Kg1 {[%emt 0:00:00]} d3 {[%emt 0:00:00]} 50. b5 {[%emt 0:00:00]} Kxd6 {[%emt 0:00:00] Weighted Error Value: White=0.69/Black=0.25 (precise)} 0-1

[Event "GER-chT States Women 2022"]
[Site "Braunfels"]
[Date "2022.06.17"]
[Round "3.10"]
[White "Birkholz, Olga"]
[Black "Frey, Alisa"]
[Result "1/2-1/2"]
[ECO "A22"]
[WhiteElo "1993"]
[BlackElo "1998"]
[Annotator "NA RC"]
[PlyCount "51"]
[EventDate "2022.06.15"]
[EventType "swiss"]
[EventCountry "GER"]
[SourceTitle "playchess.com"]
[Source "ChessBase"]
[SourceQuality "1"]
[TimeControl "40/5400+30:1800+30"]

1. c4 {[%emt 0:00:03]} e5 {[%emt 0:00:06]} 2. Nc3 {[%emt 0:00:07]} Nf6 {[%emt 0:00:06]} 3. g3 {[%emt 0:00:06]} d5 {[%emt 0:00:09]} 4. cxd5 {[%emt 0:00:14]} Nxd5 {[%emt 0:00:06]} 5. Qa4+ {[%emt 0:01:07]} Nc6 {[%emt 0:02:04]} 6. Bg2 {[%emt 0:00:26]} Be6 {[%emt 0:01:14]} 7. Nf3 {[%emt 0:01:40]} Nb6 {[%emt 0:05:49]} 8. Qd1 {[%emt 0:00:13]} Be7 {[%emt 0:00:43]} 9. O-O {[%emt 0:01:07]} O-O {[%emt 0:00:26]} 10. d3 {[%emt 0:01:10]} f6 {[%emt 0:02:22]} 11. Bd2 {[%emt 0:06:22]} Qd7 {[%emt 0:02:55]} 12. Re1 {[%emt 0:01:46]} Nb4 {[%emt 0:04:05]} 13. a4 {[%emt 0:04:47]} a5 {[%emt 0:00:46]} 14. b3 {[%emt 0:01:54]} c6 {[%emt 0:01:44]} 15. Ne4 {[%emt 0:01:58]} N6d5 {[%emt 0:01:29]} 16. Rc1 {[%emt 0:09:02]} b6 {[%emt 0:06:38]} 17. d4 {[%emt 0:01:28]} Bf5 {[%emt 0:03:00]} 18. Nh4 {[%emt 0:11:14]} exd4 {[%emt 0:07:26]} 19. Nxf5 {[%emt 0:03:49]} Qxf5 {[%emt 0:00:08]} 20. Rc4 {[%emt 0:00:11]} c5 {[%emt 0:02:51]} 21. Bxb4 {[%emt 0:05:17]} axb4 {[%emt 0:01:23]} 22. e3 {[%emt 0:01:47]} dxe3 {[%emt 0:10:12]} 23. Qxd5+ {[%emt 0:03:18]} Qxd5 {[%emt 0:00:35]} 24. Nxf6+ {[%emt 0:00:02]} Bxf6 {[%emt 0:07:20]} 25. Bxd5+ {[%emt 0:00:10]} Kh8 {[%emt 0:00:19]} 26. fxe3 {[%emt 0:27:03]} 1/2-1/2

[Event "GER-chT States Women 2022"]
[Site "Braunfels"]
[Date "2022.06.17"]
[Round "3.11"]
[White "Kuehnel, Lena"]
[Black "Stangl, Anita"]
[Result "1/2-1/2"]
[ECO "C05"]
[WhiteElo "1928"]
[BlackElo "2041"]
[Annotator "NA RC"]
[PlyCount "57"]
[EventDate "2022.06.15"]
[EventType "swiss"]
[EventCountry "GER"]
[SourceTitle "playchess.com"]
[Source "ChessBase"]
[SourceQuality "1"]
[TimeControl "40/5400+30:1800+30"]

1. e4 {[%emt 0:00:02]} e6 {[%emt 0:00:03]} 2. d4 {[%emt 0:00:08]} d5 {[%emt 0:00:04]} 3. Nd2 {[%emt 0:01:04]} Nf6 {[%emt 0:00:07]} 4. e5 {[%emt 0:00:11]} Nfd7 {[%emt 0:00:05]} 5. Bd3 {[%emt 0:00:30]} c5 {[%emt 0:00:18]} 6. c3 {[%emt 0:00:10]} Nc6 {[%emt 0:01:13]} 7. Ndf3 {[%emt 0:01:14]} Qb6 {[%emt 0:01:52]} 8. Ne2 {[%emt 0:00:49]} cxd4 {[%emt 0:00:50]} 9. cxd4 {[%emt 0:00:42]} f6 {[%emt 0:01:06]} 10. exf6 {[%emt 0:01:01]} Nxf6 {[%emt 0:00:08]} 11. O-O {[%emt 0:01:13]} Bd6 {[%emt 0:00:10]} 12. b3 {[%emt 0:03:30]} O-O {[%emt 0:00:54]} 13. Bg5 {[%emt 0:03:26]} Bd7 {[%emt 0:05:27]} 14. Bh4 {[%emt 0:05:25]} Rae8 {[%emt 0:06:23]} 15. Bg3 {[%emt 0:04:27]} Bxg3 {[%emt 0:03:42]} 16. Nxg3 {[%emt 0:03:17]} e5 {[%emt 0:01:32]} 17. dxe5 {[%emt 0:00:50]} Nxe5 {[%emt 0:00:13]} 18. Nxe5 {[%emt 0:00:57]} Rxe5 {[%emt 0:00:19]} 19. Qd2 {[%emt 0:03:07]} Rfe8 {[%emt 0:07:34]} 20. h3 Qe6 {[%emt 0:07:08]} 21. Rac1 {[%emt 0:08:08]} g6 {[%emt 0:04:59]} 22. Rc2 {[%emt 0:04:34]} Nh5 {[%emt 0:08:37]} 23. Nxh5 {[%emt 0:04:51]} Rxh5 {[%emt 0:00:23]} 24. Be2 {[%emt 0:00:56]} Re5 {[%emt 0:05:04]} 25. Bg4 {[%emt 0:03:15]} Qd6 {[%emt 0:01:16]} 26. Bxd7 {[%emt 0:01:24]} Qxd7 {[%emt 0:00:05]} 27. Rd1 {[%emt 0:11:30]} d4 {[%emt 0:18:31]} 28. Qb4 {[%emt 0:08:12]} Rd5 {[%emt 0:02:22]} 29. Qc4 {[%emt 0:08:13]} 1/2-1/2

[Event "GER-chT States Women 2022"]
[Site "Braunfels"]
[Date "2022.06.17"]
[Round "3.12"]
[White "Braun, Kristin"]
[Black "Kohm, Vanessa"]
[Result "1/2-1/2"]
[ECO "B38"]
[WhiteElo "1905"]
[BlackElo "1772"]
[Annotator "TA"]
[PlyCount "119"]
[EventDate "2022.06.15"]
[EventType "swiss"]
[EventCountry "GER"]
[SourceTitle "playchess.com"]
[Source "ChessBase"]
[SourceQuality "1"]
[TimeControl "40/5400+30:1800+30"]

{[%evp 21,119,28,68,3,55,51,60,68,125,15,124,100,203,117,104,98,87,87,88,11,11,14,13,-10,-29,-26,0,0,0,0,21,14,16,24,24,14,22,22,23,23,28,0,25,11,11,-24,-35,-33,-37,-24,-20,-19,-32,-18,-17,-45,-47,-37,-36,-34,-29,-43,6,-44,-45,-325,-331,-322,-268,-337,-316,-545,-536,-562,-547,-496,-33,-33,-36,-43,0,0,0,-51,-55,-62,-8,-8,-8,-8,-8,-8,-8,-63,-63,-63,-63,-63,0,-66]} 1. e4 {[%emt 0:00:01]} c5 {[%emt 0:00:06]} 2. Nf3 {[%emt 0:00:03]} Nc6 {[%emt 0:00:06]} 3. d4 {[%emt 0:00:03]} cxd4 {[%emt 0:00:06]} 4. Nxd4 {[%emt 0:00:02]} g6 {[%emt 0:00:10]} 5. c4 {[%emt 0:00:06]} Bg7 {[%emt 0:00:12]} 6. Be3 {[%emt 0:00:06]} d6 {[%emt 0:00:21]} 7. Nc3 {[%emt 0:00:14]} Nf6 {[%emt 0:00:31]} 8. Be2 {[%emt 0:00:06]} O-O {[%emt 0:00:28]} 9. O-O {[%emt 0:00:18]} a6 {[%emt 0:00:58]} 10. Rc1 {[%emt 0:00:30]} Bd7 {[%emt 0:01:00]} 11. b3 {[%emt 0:00:15]} Rc8 {[%emt 0:01:58][%cal Ob7b5]} 12. Kh1 {[%emt 0:03:42] [#] B38: Sicilian: Maroczy Bind with 5...Bg7 and 7...0-0.} (12. Nxc6 $14 Bxc6 13. f3) 12... e6 $146 {[%emt 0:02:41]} (12... b5 $11) ({Predecessor:} 12... Qa5 13. f4 b5 14. cxb5 axb5 15. Ndxb5 Nb4 16. a4 Bc6 17. Bf3 Bxb5 18. Nxb5 Na2 19. Rxc8 Rxc8 {1-0 (37) Maher,C (1939)-Purkic,R (1483) Tornelo INT 2021}) 13. Qd2 {[%emt 0:04:50]} Re8 {[%emt 0:01:11][%cal Od6d5]} 14. Rfd1 {[%emt 0:01:34] White is slightly better.} Qe7 {[%emt 0:06:10]} (14... Qa5 $14) 15. Nf3 {[%emt 0:13:31]} (15. Nc2 $1 $16) 15... Bf8 {[%emt 0:05:15]} (15... Ng4 $11) 16. Bg5 {[%emt 0:02:05][%cal Oc4c5]} Red8 {[%emt 0:03:11]} (16... h6 $16) 17. Qf4 {[%emt 0:06:58]} (17. c5 $18 {[%cal Rc5d6]} dxc5 18. e5) 17... Bg7 $16 {[%emt 0:08:30][%cal Oh7h6]} 18. Qxd6 {[%emt 0:05:24] White is more active.} ({Don't do} 18. Rxd6 h6 19. Bxf6 Qxf6 $14) 18... Qxd6 {[%emt 0:01:10]} 19. Rxd6 {[%emt 0:00:01]} h6 {[%emt 0:06:04]} 20. Bh4 {[%emt 0:02:14]} (20. Be3 $16) 20... g5 $11 {[%emt 0:02:12]} 21. Bg3 {[%emt 0:01:56]} Nh5 {[%emt 0:04:13]} 22. Na4 {[%emt 0:02:48]} Nxg3+ {[%emt 0:01:19]} 23. hxg3 {[%emt 0:00:09] Threatens to win with Nb6.} Bf8 {[%emt 0:01:54]} (23... Be8 $5 {[%cal Rd8d6]} 24. Rxd8 Rxd8 $11) 24. Rd2 {[%emt 0:00:55]} Be8 {[%emt 0:03:05]} 25. Rcd1 {[%emt 0:01:12]} Bb4 {[%emt 0:03:51]} 26. Rxd8 {[%emt 0:06:02]} Rxd8 {[%emt 0:00:11]} 27. Rxd8 {[%emt 0:00:39]} Nxd8 {[%emt 0:00:06]} 28. Nb2 {[%emt 0:00:19]} Nc6 {[%emt 0:03:30]} 29. Nd3 {[%emt 0:00:29]} Bc3 {[%emt 0:01:50]} 30. Nc5 {[%emt 0:01:57]} Nd8 {[%emt 0:02:51]} 31. Kg1 {[%emt 0:12:10]} g4 {[%emt 0:03:05]} 32. Nh4 {[%emt 0:02:37]} h5 {[%emt 0:03:01]} 33. Kf1 {[%emt 0:00:22]} Bc6 {[%emt 0:02:57]} 34. f3 {[%emt 0:06:48]} Be5 {[%emt 0:06:30]} 35. fxg4 {[%emt 0:00:13]} Bxg3 {[%emt 0:03:43] This bishop pair is nice.} 36. Nf3 {[%emt 0:00:38]} Bd6 {[%emt 0:02:02]} ({But not} 36... hxg4 37. Nd4 $14) 37. Nd3 {[%emt 0:01:48]} hxg4 {[%emt 0:00:46]} 38. Nd2 {[%emt 0:08:04]} f5 {[%emt 0:01:10]} 39. exf5 {[%emt 0:06:20]} exf5 {[%emt 0:00:33]} 40. c5 {[%emt 0:00:16]} Be7 {[%emt 0:09:53]} 41. Nc4 {[%emt 0:35:59]} Ne6 {[%emt 0:34:13]} (41... Kg7 $15 {deserves consideration.}) 42. b4 {[%emt 0:05:52]} (42. Nde5 $11) 42... Nd4 $15 {[%emt 0:04:40]} 43. Ne3 $2 {[%emt 0:00:00][%mdl 8192]} (43. g3 $15) 43... Bg5 $19 {[%emt 0:00:00]} 44. Nc4 {[%emt 0:00:00]} Nxe2 45. Kxe2 Bxg2 {[%emt 0:00:00][%mdl 4096] Endgame Hoping for ...Bd5. KBB-KNN} 46. Nd6 $2 {[%emt 0:00:00]} (46. a4) 46... f4 {[%emt 0:00:00][%cal Bf5f4,Bf4f3][%mdl 32]} 47. Ne5 {[%emt 0:00:00]} f3+ {[%emt 0:00:00]} 48. Kf2 {[%emt 0:00:00] [#]} Bh4+ $2 {[%emt 0:00:00]} (48... g3+ $1 $19 49. Kxg3 {[#]} Bf4+ $1 {[%mdl 512]} 50. Kf2 (50. Kxf4 $2 f2 $19) 50... Bxe5) 49. Kg1 $15 {[%emt 0:00:00]} Bh3 {[%emt 0:00:00] ( -> ...f2+)} 50. Ne4 {[%emt 0:00:00] Prevents f2+.} Be1 {[%emt 0:00:00]} (50... Kg7 $5 {[%cal Rh4f6]} 51. Nf2 Kf6 52. Nexg4+ Bxg4 53. Nxg4+ Kf5 54. Nh6+ Ke6 $17) 51. Nd3 {[%emt 0:00:00]} Bh4 {[%emt 0:00:00]} (51... f2+ $11 52. Nexf2 Bc3) 52. Ne5 {[%emt 0:00:00]} Kg7 {[%emt 0:00:00] And now ...Bf6 would win.} 53. Nf2 {[%emt 0:00:00]} Bf6 {[%emt 0:00:00]} ({Better is} 53... Kf6 $15 54. Nexg4+ Bxg4 55. Nxg4+ Kf5 56. Nh6+ Ke6) 54. Nfxg4 $11 {[%emt 0:00:00]} Bxg4 {[%emt 0:00:00]} 55. Nxg4 {[%emt 0:00:00] KB-KN} Bc3 {[%emt 0:00:35]} 56. Kf2 {[%emt 0:00:00]} Bxb4 {[%emt 0:00:39]} 57. Kxf3 {[%emt 0:00:00]} (57. c6 $1 $11 bxc6 58. Ne5) 57... Bxc5 $15 {[%emt 0:00:33]} 58. Ke4 {[%emt 0:00:00]} Kf7 {[%emt 0:02:06]} 59. Kd5 {[%emt 0:00:00]} Bg1 {[%emt 0:00:42]} (59... Bb6 $15) 60. Ke4 {Never resign too early!  Weighted Error Value: White=0.37/Black=0.26 (precise)} ({White should play} 60. Kd6 $1 $11) 1/2-1/2

[Event "GER-chT States Women 2022"]
[Site "Braunfels"]
[Date "2022.06.17"]
[Round "3.13"]
[White "Grining, Maria"]
[Black "Ankerst, Milka"]
[Result "0-1"]
[ECO "A46"]
[WhiteElo "1759"]
[BlackElo "1931"]
[Annotator "RC"]
[PlyCount "80"]
[EventDate "2022.06.15"]
[EventType "swiss"]
[EventCountry "GER"]
[SourceTitle "playchess.com"]
[Source "ChessBase"]
[SourceQuality "1"]
[TimeControl "40/5400+30:1800+30"]

1. d4 {[%emt 0:00:04]} Nf6 {[%emt 0:00:50]} 2. Nf3 {[%emt 0:00:06]} e6 {[%emt 0:00:13]} 3. e3 {[%emt 0:00:07]} c5 {[%emt 0:00:32]} 4. Bd3 {[%emt 0:00:12]} Nc6 {[%emt 0:00:33]} 5. O-O {[%emt 0:00:22]} d5 {[%emt 0:00:59]} 6. b3 {[%emt 0:00:09]} cxd4 {[%emt 0:03:15]} 7. exd4 {[%emt 0:00:23]} Be7 {[%emt 0:00:49]} 8. Bb2 {[%emt 0:03:18]} O-O {[%emt 0:00:26]} 9. Nbd2 {[%emt 0:00:29]} Bd7 {[%emt 0:04:03]} 10. Ne5 {[%emt 0:00:43]} Nb4 {[%emt 0:01:23]} 11. Be2 {[%emt 0:00:33]} Rc8 {[%emt 0:01:03]} 12. c3 {[%emt 0:02:02]} Nc6 {[%emt 0:00:39]} 13. Bd3 {[%emt 0:01:12]} a6 {[%emt 0:03:31]} 14. f4 {[%emt 0:01:01]} g6 {[%emt 0:07:10]} 15. Qf3 {[%emt 0:05:16]} b5 {[%emt 0:07:24]} 16. g4 {[%emt 0:03:11]} Nxe5 {[%emt 0:02:31]} 17. dxe5 {[%emt 0:03:03]} Qb6+ {[%emt 0:00:55]} 18. Kh1 {[%emt 0:01:39]} Ne8 {[%emt 0:05:29]} 19. f5 {[%emt 0:03:41]} exf5 {[%emt 0:06:43]} 20. gxf5 {[%emt 0:00:47]} Bg5 {[%emt 0:00:35]} 21. Qf2 Qxf2 {[%emt 0:09:40]} 22. Rxf2 {[%emt 0:15:52]} Bc6 {[%emt 0:03:04]} 23. Nf3 {[%emt 0:04:21]} Be3 {[%emt 0:01:21]} 24. Rff1 {[%emt 0:00:45]} Ng7 {[%emt 0:01:26]} 25. Nd4 {[%emt 0:03:33]} Bb7 {[%emt 0:02:18]} 26. Rad1 {[%emt 0:08:12]} Rfe8 {[%emt 0:02:28]} 27. e6 {[%emt 0:14:18]} gxf5 {[%emt 0:03:51]} 28. exf7+ {[%emt 0:04:49]} Kxf7 {[%emt 0:00:41]} 29. Bxf5 {[%emt 0:00:25]} Nxf5 {[%emt 0:01:18]} 30. Rxf5+ {[%emt 0:00:03]} Kg6 {[%emt 0:09:57]} 31. Rdf1 {[%emt 0:02:45]} Rc7 {[%emt 0:03:52]} 32. R1f3 {[%emt 0:05:49]} Bxd4 {[%emt 0:01:41]} 33. cxd4 {[%emt 0:00:15]} Re1+ {[%emt 0:00:10]} 34. Kg2 {[%emt 0:01:06]} Re2+ {[%emt 0:00:10]} 35. Rf2 {[%emt 0:00:12]} Rxb2 {[%emt 0:00:22]} 36. Rf6+ {[%emt 0:01:26]} Kg7 {[%emt 0:00:04]} 37. Kg3 {[%emt 0:00:19]} Rxf2 {[%emt 0:00:35]} 38. Rxf2 {[%emt 0:00:05]} Bc8 {[%emt 0:01:08]} 39. Re2 {[%emt 0:00:27]} Bf5 {[%emt 0:05:01]} 40. Kf4 {[%emt 0:00:49]} Be4 {[%emt 0:00:33]} 0-1